[Event "Croatian-ch Youth U15 2022"]
[Site "Trogir"]
[Date "2022.06.27"]
[Round "9.3"]
[White "Sundac, Ivano"]
[Black "Frouth, Vibor"]
[Result "1-0"]
[ECO "B13"]
[WhiteElo "1978"]
[BlackElo "1493"]
[Annotator "RC"]
[PlyCount "153"]
[EventDate "2022.06.22"]
[EventType "swiss"]
[EventCountry "CRO"]
[SourceTitle "playchess.com"]
[Source "ChessBase"]
[SourceQuality "1"]
[TimeControl "5400+30"]

1. e4 {[%emt 0:00:02]} c6 {[%emt 0:04:59]} 2. d4 {[%emt 0:00:23]} d5 {[%emt 0:00:22]} 3. exd5 {[%emt 0:00:15]} cxd5 {[%emt 0:00:07]} 4. Bd3 {[%emt 0:00:04]} Nc6 {[%emt 0:00:25]} 5. c3 {[%emt 0:00:05]} h6 {[%emt 0:00:33]} 6. h3 {[%emt 0:01:58]} Nf6 {[%emt 0:00:13]} 7. Nf3 {[%emt 0:00:20]} e6 {[%emt 0:00:14]} 8. O-O {[%emt 0:01:49]} Bd6 {[%emt 0:00:31]} 9. Re1 {[%emt 0:00:46]} O-O {[%emt 0:00:31]} 10. Ne5 {[%emt 0:02:08]} Qc7 {[%emt 0:03:43]} 11. f4 {[%emt 0:02:11]} Bd7 {[%emt 0:06:16]} 12. Nd2 {[%emt 0:04:03]} Nh7 {[%emt 0:02:11]} 13. Qg4 {[%emt 0:06:50]} f5 {[%emt 0:03:27]} 14. Qe2 {[%emt 0:01:21]} Nxe5 {[%emt 0:00:56]} 15. fxe5 {[%emt 0:00:14]} Be7 {[%emt 0:00:18]} 16. c4 {[%emt 0:01:49]} Bc6 {[%emt 0:01:49]} 17. Nf3 {[%emt 0:03:31]} Rac8 {[%emt 0:03:00]} 18. Bd2 {[%emt 0:00:30]} Qd8 {[%emt 0:07:28]} 19. c5 {[%emt 0:06:33]} Ng5 {[%emt 0:04:02]} 20. Nxg5 {[%emt 0:00:53]} Bxg5 {[%emt 0:00:12]} 21. b4 {[%emt 0:00:52]} Bxd2 {[%emt 0:00:26]} 22. Qxd2 {[%emt 0:00:06]} a6 {[%emt 0:01:27]} 23. a4 {[%emt 0:00:35]} Qh4 {[%emt 0:03:11]} 24. Qf2 {[%emt 0:00:08]} Qxf2+ {[%emt 0:01:36]} 25. Kxf2 {[%emt 0:00:07]} g5 {[%emt 0:00:42]} 26. b5 {[%emt 0:00:05]} axb5 {[%emt 0:00:09]} 27. axb5 {[%emt 0:00:06]} Be8 {[%emt 0:00:51]} 28. Ra7 {[%emt 0:00:26]} Rb8 {[%emt 0:00:28]} 29. Rea1 {[%emt 0:00:22]} Rf7 {[%emt 0:01:58]} 30. Be2 {[%emt 0:00:37]} Rd7 {[%emt 0:01:50]} 31. Ra8 {[%emt 0:01:08]} Rdd8 {[%emt 0:01:06]} 32. Rxb8 {[%emt 0:00:12]} Rxb8 {[%emt 0:00:08]} 33. Ra7 {[%emt 0:00:20]} Kf8 {[%emt 0:01:06]} 34. Ke3 {[%emt 0:00:11]} Ke7 {[%emt 0:01:55]} 35. g3 {[%emt 0:08:30]} Kd8 {[%emt 0:00:56]} 36. Kd2 {[%emt 0:03:11]} Kc7 {[%emt 0:00:58]} 37. Kc3 {[%emt 0:00:45]} Rd8 {[%emt 0:02:26]} 38. Kb4 {[%emt 0:01:27]} Kb8 {[%emt 0:00:35]} 39. Ra1 {[%emt 0:00:37]} Bd7 {[%emt 0:01:20]} 40. Rc1 {[%emt 0:00:51]} Kc7 {[%emt 0:00:31]} 41. Ra1 {[%emt 0:09:21]} Rf8 {[%emt 0:02:18]} 42. c6 {[%emt 0:02:34]} Bc8 {[%emt 0:00:58]} 43. cxb7 {[%emt 0:05:11]} Kxb7 {[%emt 0:04:02]} 44. Kc5 {[%emt 0:01:06]} f4 {[%emt 0:00:22]} 45. gxf4 {[%emt 0:02:06]} gxf4 {[%emt 0:00:12]} 46. Rf1 {[%emt 0:01:40]} Kc7 {[%emt 0:00:38]} 47. b6+ {[%emt 0:00:40]} Kb7 {[%emt 0:00:27]} 48. Kd6 {[%emt 0:01:39]} Rf7 {[%emt 0:10:48]} 49. Bh5 {[%emt 0:00:52]} Rg7 {[%emt 0:00:22]} 50. Rxf4 {[%emt 0:01:31]} Kxb6 {[%emt 0:00:23]} 51. Bg4 {[%emt 0:01:00]} Rc7 {[%emt 0:01:09]} 52. Rf1 {[%emt 0:03:00]} Rc6+ {[%emt 0:02:44]} 53. Ke7 {[%emt 0:00:06]} Rc7+ {[%emt 0:00:55]} 54. Kf6 {[%emt 0:01:05]} Rc4 {[%emt 0:00:29]} 55. Rd1 {[%emt 0:01:04]} Kb5 {[%emt 0:00:32]} 56. Rb1+ {[%emt 0:08:34]} Ka5 {[%emt 0:02:12]} 57. Rb8 {[%emt 0:00:28]} Ba6 {[%emt 0:04:38]} 58. Kxe6 {[%emt 0:01:39]} Rxd4 {[%emt 0:00:26]} 59. Kd6 {[%emt 0:02:24]} Rb4 {[%emt 0:01:46]} 60. Rxb4 {[%emt 0:00:41]} Kxb4 {[%emt 0:00:17]} 61. Kxd5 {[%emt 0:00:12]} Bb5 {[%emt 0:01:26]} 62. Kd6 {[%emt 0:00:32]} Be8 {[%emt 0:00:11]} 63. Ke7 {[%emt 0:00:10]} Bb5 {[%emt 0:00:55]} 64. Kf6 {[%emt 0:00:05]} Kc5 {[%emt 0:00:21]} 65. Kg6 {[%emt 0:00:56]} Kd5 {[%emt 0:00:28]} 66. e6 {[%emt 0:00:06]} Ke5 {[%emt 0:00:46]} 67. e7 {[%emt 0:01:27]} Be8+ {[%emt 0:00:32]} 68. Kg7 {[%emt 0:00:17]} Kd6 {[%emt 0:01:17]} 69. Kf8 {[%emt 0:00:18]} Bb5 {[%emt 0:00:52]} 70. e8=Q {[%emt 0:00:33]} Bxe8 {[%emt 0:00:06]} 71. Kxe8 {[%emt 0:00:03]} Kc7 {[%emt 0:01:48]} 72. Ke7 {[%emt 0:00:33]} Kc6 {[%emt 0:00:40]} 73. Kf6 {[%emt 0:00:26]} Kd6 {[%emt 0:00:19]} 74. Kg7 {[%emt 0:00:13]} Ke7 {[%emt 0:00:15]} 75. Kxh6 {[%emt 0:00:06]} Kf7 {[%emt 0:00:17]} 76. Be6+ {[%emt 0:00:46]} Kf6 {[%emt 0:01:15]} 77. h4 {[%emt 0:00:05]} 1-0

[Event "Croatian-ch Youth U15 2022"]
[Site "Trogir"]
[Date "2022.06.27"]
[Round "9.4"]
[White "Konjevic, Nikola"]
[Black "Jakovic, Roko"]
[Result "0-1"]
[ECO "B22"]
[WhiteElo "1708"]
[BlackElo "1944"]
[Annotator "RC"]
[PlyCount "136"]
[EventDate "2022.06.22"]
[EventType "swiss"]
[EventCountry "CRO"]
[SourceTitle "playchess.com"]
[Source "ChessBase"]
[SourceQuality "1"]
[TimeControl "5400+30"]

1. e4 {[%emt 0:00:07]} c5 {[%emt 0:00:07]} 2. c3 {[%emt 0:00:01]} Nf6 {[%emt 0:00:07]} 3. e5 {[%emt 0:00:02]} Nd5 {[%emt 0:00:07]} 4. d4 {[%emt 0:00:01]} cxd4 {[%emt 0:00:10]} 5. Nf3 {[%emt 0:00:08]} Nc6 {[%emt 0:00:07]} 6. cxd4 {[%emt 0:00:03]} d6 {[%emt 0:00:19]} 7. Bc4 {[%emt 0:00:03]} e6 {[%emt 0:00:11]} 8. Qe2 {[%emt 0:00:35]} Be7 {[%emt 0:00:28]} 9. O-O {[%emt 0:00:24]} O-O {[%emt 0:00:40]} 10. Nc3 {[%emt 0:02:34]} Nxc3 {[%emt 0:00:36]} 11. bxc3 {[%emt 0:00:03]} dxe5 {[%emt 0:00:18]} 12. dxe5 {[%emt 0:00:40]} b6 {[%emt 0:05:50]} 13. Qe4 {[%emt 0:19:51]} Bb7 {[%emt 0:00:58]} 14. Bd3 {[%emt 0:00:02]} g6 {[%emt 0:00:44]} 15. Bh6 {[%emt 0:03:41]} Re8 {[%emt 0:00:08]} 16. Qe2 {[%emt 0:03:51]} Qc7 {[%emt 0:03:06]} 17. Rfe1 {[%emt 0:06:10]} Bf8 {[%emt 0:11:53]} 18. Qe3 {[%emt 0:05:56]} Ne7 {[%emt 0:06:38]} 19. Bxf8 {[%emt 0:13:41]} Rxf8 {[%emt 0:00:28]} 20. c4 {[%emt 0:00:23]} Bxf3 {[%emt 0:06:38]} 21. Qxf3 {[%emt 0:00:58]} Rad8 {[%emt 0:01:47]} 22. Re3 {[%emt 0:09:30]} Nc6 {[%emt 0:02:50]} 23. Rae1 {[%emt 0:02:29]} Nb4 {[%emt 0:03:38]} 24. Bb1 {[%emt 0:01:02]} Qxc4 {[%emt 0:04:38]} 25. h4 {[%emt 0:01:38]} Rd4 {[%emt 0:04:03]} 26. h5 {[%emt 0:15:07]} Nd5 {[%emt 0:07:09]} 27. Ra3 {[%emt 0:05:52]} Qb4 {[%emt 0:04:54]} 28. Rc1 {[%emt 0:02:52]} Qd2 {[%emt 0:00:50]} 29. Rf1 {[%emt 0:00:31]} a5 {[%emt 0:05:52]} 30. Be4 {[%emt 0:05:07]} Qf4 {[%emt 0:03:23]} 31. Bxd5 {[%emt 0:00:08]} exd5 {[%emt 0:00:06]} 32. Qb3 {[%emt 0:00:48]} Qxe5 {[%emt 0:01:37]} 33. hxg6 {[%emt 0:00:49]} hxg6 {[%emt 0:00:25]} 34. Qxb6 {[%emt 0:00:38]} Rh4 {[%emt 0:06:42]} 35. Rh3 {[%emt 0:01:44]} Rxh3 {[%emt 0:01:01]} 36. gxh3 {[%emt 0:00:01]} Rc8 {[%emt 0:02:18]} 37. Qxa5 {[%emt 0:00:47]} Rc3 {[%emt 0:00:20]} 38. Qd8+ {[%emt 0:00:02]} Kg7 {[%emt 0:00:16]} 39. Qh4 {[%emt 0:00:05]} Ra3 {[%emt 0:04:43]} 40. Rd1 {[%emt 0:00:43]} Rxa2 {[%emt 0:00:40]} 41. Qd4 {[%emt 0:00:53]} Qxd4 {[%emt 0:00:33]} 42. Rxd4 {[%emt 0:00:01]} Ra5 {[%emt 0:00:07]} 43. Kg2 {[%emt 0:00:58]} Kf6 {[%emt 0:00:23]} 44. Rd3 {[%emt 0:00:45]} Ke5 {[%emt 0:00:41]} 45. Kf3 {[%emt 0:00:10]} Ra4 {[%emt 0:00:24]} 46. Rb3 {[%emt 0:00:16]} Kd4 {[%emt 0:01:46]} 47. Rb7 {[%emt 0:00:59]} f6 {[%emt 0:01:55]} 48. Rb6 {[%emt 0:00:49]} Ke5 {[%emt 0:00:25]} 49. Rb3 {[%emt 0:00:13]} Rf4+ {[%emt 0:01:39]} 50. Ke3 {[%emt 0:00:43]} d4+ {[%emt 0:00:32]} 51. Ke2 {[%emt 0:00:08]} Ke4 {[%emt 0:00:59]} 52. Ra3 {[%emt 0:00:19]} d3+ {[%emt 0:01:44]} 53. Rxd3 {[%emt 0:00:58]} Rxf2+ {[%emt 0:00:14]} 54. Kxf2 {[%emt 0:00:01]} Kxd3 {[%emt 0:00:01]} 55. Kf3 {[%emt 0:00:01]} Kd4 {[%emt 0:01:31]} 56. Kf4 {[%emt 0:00:22]} Kd5 {[%emt 0:00:33]} 57. h4 {[%emt 0:00:58]} Kd4 {[%emt 0:00:17]} 58. Kf3 {[%emt 0:00:23]} Ke5 {[%emt 0:00:07]} 59. Ke3 {[%emt 0:00:12]} f5 {[%emt 0:00:18]} 60. Kf3 {[%emt 0:01:25]} f4 {[%emt 0:00:07]} 61. Kg4 {[%emt 0:00:38]} Ke4 {[%emt 0:00:22]} 62. Kg5 {[%emt 0:00:01]} f3 {[%emt 0:00:07]} 63. Kxg6 {[%emt 0:00:06]} f2 {[%emt 0:00:04]} 64. h5 {[%emt 0:00:04]} f1=Q {[%emt 0:00:12]} 65. h6 {[%emt 0:00:09]} Qf8 {[%emt 0:00:13]} 66. Kh7 {[%emt 0:00:21]} Ke5 {[%emt 0:00:24]} 67. Kg6 {[%emt 0:00:31]} Qh8 {[%emt 0:00:04]} 68. h7 {[%emt 0:00:32]} Qf6+ {[%emt 0:00:18]} 0-1

[Event "Croatian-ch Youth U15 2022"]
[Site "Trogir"]
[Date "2022.06.27"]
[Round "9.5"]
[White "Kurtovic, Darko"]
[Black "Gal, Andrej"]
[Result "0-1"]
[ECO "E62"]
[WhiteElo "1353"]
[BlackElo "1874"]
[Annotator "NA RC"]
[PlyCount "72"]
[EventDate "2022.06.22"]
[EventType "swiss"]
[EventCountry "CRO"]
[SourceTitle "playchess.com"]
[Source "ChessBase"]
[SourceQuality "1"]
[TimeControl "5400+30"]

{[%evp 8,72,27,23,30,28,27,36,32767,32767,32767,32767,32767,32767,32767,37,56,36,44,42,32767,-17,32767,0,32767,0,32767,32767,32767,32767,32767,-43,-42,32767,32767,-72,32767,-105,32767,32767,-85,-172,32767,-351,0,-74,-28,-94,-84,-239,-14,-162,-172,-345,32767,32767,32767,32767,32767,32767,32767,32767,32767,32767,-1686,32767,-29993]} 1. Nf3 {[%emt 0:00:03]} Nf6 {[%emt 0:00:14]} 2. g3 {[%emt 0:00:06]} g6 {[%emt 0:00:04]} 3. Bg2 {[%emt 0:00:05]} Bg7 {[%emt 0:00:04]} 4. c4 {[%emt 0:00:05]} O-O {[%emt 0:00:08]} 5. O-O {[%emt 0:00:05]} d6 {[%emt 0:00:28]} 6. d4 {[%emt 0:00:09]} Nc6 {[%emt 0:00:07]} 7. Nc3 {[%emt 0:00:11]} e5 {[%emt 0:01:12]} 8. d5 {[%emt 0:00:15]} Nb8 {[%emt 0:00:15] seems to push 8...Ne7 aside.} 9. e4 {[%emt 0:00:37]} a5 {[%emt 0:00:24]} 10. Bg5 {[%emt 0:01:09]} h6 {[%emt 0:02:08]} 11. Be3 {[%emt 0:02:53] [#]} Bd7 $146 {[%emt 0:11:49]} ({Predecessor:} 11... Nfd7 12. Qd2 Kh7 13. h4 Na6 14. Nh2 Nac5 15. h5 gxh5 16. Nf3 Nf6 17. Bxc5 dxc5 18. Nxe5 Nxd5 19. Nxf7 Rxf7 20. cxd5 {1-0 (44) Kushko,D (2302)-Wartiovaara,O (2205) Chess.com INT 2022}) 12. Qb3 {[%emt 0:06:08]} b6 {[%emt 0:03:06]} 13. h3 {[%emt 0:02:55]} Na6 {[%emt 0:02:32]} 14. Ne1 {[%emt 0:08:17]} (14. Qd1 $14) 14... Nc5 {[%emt 0:09:04]} 15. Qc2 {[%emt 0:04:28]} Nh5 {[%emt 0:01:11]} 16. Nd3 {[%emt 0:04:01]} f5 {[%emt 0:07:00]} 17. Nxc5 {[%emt 0:00:43]} bxc5 {[%emt 0:00:07]} 18. exf5 {[%emt 0:02:27]} gxf5 {[%emt 0:00:48]} 19. Qe2 {[%emt 0:06:04]} (19. Bf3 $11 {deserves consideration.} Qe8 20. Kh2) 19... Qe8 {[%emt 0:03:18]} 20. Bf3 {[%emt 0:00:22]} Nf6 {[%emt 0:00:24]} 21. Bg2 {[%emt 0:00:47]} Qg6 {[%emt 0:02:17]} 22. Kh1 {[%emt 0:02:20]} (22. Qc2 $15) 22... Rae8 {[%emt 0:02:20]} 23. Qc2 {[%emt 0:00:58]} Qh5 {[%emt 0:03:17]} 24. Qd1 {[%emt 0:00:49]} (24. f4 $17 {is a better defense.}) 24... Qf7 {[%emt 0:01:36]} 25. Qc1 $2 {[%emt 0:12:28]} (25. Re1 $17 {was called for.}) 25... Qg6 $2 {[%emt 0:01:34]} ({Better is} 25... f4 $1 $19 26. gxf4 Qh5) 26. Qc2 {[%emt 0:00:12]} Nh5 {[%emt 0:03:03]} ({Black should try} 26... Rb8 $17) 27. Ne2 {[%emt 0:00:53] [#]} (27. Kh2 $11 {remains equal.}) 27... Qf7 $1 {[%emt 0:01:00]} 28. Bd2 $2 {[%emt 0:02:22]} (28. f4 $17) 28... Bc8 $2 {[%emt 0:05:44]} (28... f4 $19 29. gxf4 exf4) 29. Bxa5 $2 {[%emt 0:01:47]} (29. Kh2 $11 {and White is okay.}) 29... f4 {[%emt 0:11:06]} 30. g4 $2 {[%emt 0:01:58]} (30. Be4 Bxh3 31. Rg1 (31. Bg6 $2 Qd7 $19)) 30... f3 {[%emt 0:00:59]} 31. gxh5 {[%emt 0:02:29]} fxg2+ {[%emt 0:00:06]} 32. Kxg2 {[%emt 0:00:06]} Qf3+ {[%emt 0:00:26]} 33. Kg1 {[%emt 0:01:36]} Bxh3 {[%emt 0:01:08]} 34. Qg6 {[%emt 0:00:09]} Qxe2 {[%emt 0:00:47]} 35. Qg3 {[%emt 0:00:57]} Qxh5 {[%emt 0:01:02]} 36. f4 {[%emt 0:01:06]} exf4 {[%emt 0:00:25]} 0-1

[Event "Croatian-ch Youth U15 2022"]
[Site "Trogir"]
[Date "2022.06.27"]
[Round "9.6"]
[White "Zadro, Matej"]
[Black "Tomljanovic, Ivano"]
[Result "1/2-1/2"]
[ECO "D20"]
[WhiteElo "1861"]
[BlackElo "1844"]
[Annotator "NA RC"]
[PlyCount "65"]
[EventDate "2022.06.22"]
[EventType "swiss"]
[EventCountry "CRO"]
[SourceTitle "playchess.com"]
[Source "ChessBase"]
[SourceQuality "1"]
[TimeControl "5400+30"]

{[%evp 9,60,29,23,32767,31,32767,32767,32767,32767,41,76,63,68,16,41,25,113,107,190,32767,32767,78,32767,262,32767,32767,291,288,454,422,348,401,357,407,420,289,429,377,339,32767,32767,308,32767,330,32767,32767,32767,354,32767,32767,32767,32767,502]} 1. e4 {[%emt 0:00:03]} c6 {[%emt 0:01:14]} 2. d4 {[%emt 0:00:04]} d5 {[%emt 0:00:45]} 3. exd5 {[%emt 0:00:03]} cxd5 {[%emt 0:00:06]} 4. c4 {[%emt 0:00:03]} dxc4 {[%emt 0:01:16]} 5. Bxc4 {[%emt 0:00:05]} e6 {[%emt 0:00:08]} 6. Nf3 {[%emt 0:00:48]} Nf6 {[%emt 0:00:20]} 7. O-O {[%emt 0:00:43]} Bd6 {[%emt 0:01:02]} 8. Nc3 {[%emt 0:00:47]} O-O {[%emt 0:00:47]} 9. Bg5 {[%emt 0:00:41]} Nbd7 {[%emt 0:01:34]} (9... h6 $11 {feels stronger.} 10. Bxf6 Qxf6) 10. Rc1 {[%emt 0:02:28]} a6 {[%emt 0:02:56]} 11. a4 {[%emt 0:01:57]} (11. Bb3 $14) 11... h6 {[%emt 0:04:35]} 12. Bh4 {[%emt 0:00:43]} b6 {[%emt 0:00:43] [#]} (12... b5 $11 13. axb5 axb5 14. Bxb5 (14. Nxb5 Bf4 $11) 14... Qb6) 13. d5 $1 {[%emt 0:06:28]} e5 {[%emt 0:02:56]} (13... Bf4 $16 {is a better defense.}) 14. Ne4 {[%emt 0:16:51]} Qe7 {[%emt 0:01:00]} 15. Qb3 $2 {[%emt 0:11:04]} (15. Re1 $18 {is more deadly.}) 15... g5 {[%emt 0:05:29] [#]} 16. Nfxg5 $1 {[%emt 0:06:36]} Nxe4 {[%emt 0:17:50]} 17. Nxe4 {[%emt 0:02:11]} Qxh4 {[%emt 0:00:41]} 18. Nxd6 {[%emt 0:00:06]} f5 {[%emt 0:18:17]} 19. Nxc8 {[%emt 0:06:57]} Raxc8 {[%emt 0:01:15]} 20. d6+ {[%emt 0:01:22]} Kh8 {[%emt 0:00:20]} 21. Bxa6 {[%emt 0:03:46]} Rcd8 {[%emt 0:01:41]} 22. g3 {[%emt 0:29:38]} Qh3 {[%emt 0:03:51]} 23. Rfd1 {[%emt 0:01:36]} f4 {[%emt 0:07:51]} 24. Bf1 {[%emt 0:01:39]} Qf5 {[%emt 0:00:25]} 25. Qd3 {[%emt 0:00:23]} Qf6 {[%emt 0:06:38]} 26. Bg2 {[%emt 0:03:31]} Nc5 {[%emt 0:05:21]} 27. Qd5 {[%emt 0:01:09]} Ne6 {[%emt 0:01:07]} 28. Re1 {[%emt 0:01:36]} Nc5 {[%emt 0:02:38]} 29. Rcd1 {[%emt 0:00:47]} Rfe8 {[%emt 0:01:01]} 30. gxf4 {[%emt 0:00:51]} Qxf4 $18 {[%emt 0:01:26]} 31. Re3 {[%emt 0:00:24]} Re6 {[%emt 0:03:36]} 32. Rf3 {[%emt 0:00:35]} Qxa4 {[%emt 0:00:57]} 33. b3 {[%emt 0:00:31]} 1/2-1/2

[Event "Croatian-ch Youth U15 2022"]
[Site "Trogir"]
[Date "2022.06.27"]
[Round "9.7"]
[White "Mandaric, Fran"]
[Black "Rautner, Fran"]
[Result "1/2-1/2"]
[ECO "B22"]
[WhiteElo "1808"]
[BlackElo "1753"]
[Annotator "NA RC"]
[PlyCount "32"]
[EventDate "2022.06.22"]
[EventType "swiss"]
[EventCountry "CRO"]
[SourceTitle "playchess.com"]
[Source "ChessBase"]
[SourceQuality "1"]
[TimeControl "5400+30"]

1. e4 {[%emt 0:00:03]} c5 {[%emt 0:01:49]} 2. Nf3 {[%emt 0:00:07]} e6 {[%emt 0:00:20]} 3. c3 {[%emt 0:00:06]} Nc6 {[%emt 0:00:18]} 4. d4 {[%emt 0:01:47]} d5 {[%emt 0:00:07]} 5. exd5 {[%emt 0:00:26]} exd5 {[%emt 0:00:06]} 6. Bb5 {[%emt 0:00:49]} Bd7 {[%emt 0:12:31]} (6... a6 $11 7. Bxc6+ bxc6) 7. Bf4 $14 {[%emt 0:02:51]} Qe7+ {[%emt 0:09:55]} 8. Qe2 {[%emt 0:03:10]} Qxe2+ {[%emt 0:02:34]} 9. Bxe2 {[%emt 0:00:58]} cxd4 {[%emt 0:00:35]} 10. Nxd4 {[%emt 0:01:13]} Nxd4 {[%emt 0:01:34]} 11. cxd4 {[%emt 0:00:07]} Bb4+ {[%emt 0:01:15]} 12. Nd2 {[%emt 0:05:18]} Nf6 {[%emt 0:07:10]} 13. O-O {[%emt 0:03:53]} O-O {[%emt 0:01:11]} 14. Bd3 {[%emt 0:03:22]} Rac8 {[%emt 0:03:09]} 15. Nf3 {[%emt 0:03:11]} Ba4 {[%emt 0:06:01]} 16. Bf5 {[%emt 0:10:13]} Bd7 {[%emt 0:05:21]} 1/2-1/2

[Event "Croatian-ch Youth U15 2022"]
[Site "Trogir"]
[Date "2022.06.27"]
[Round "9.8"]
[White "Djuric, Leon"]
[Black "Horcicka, Jan"]
[Result "1-0"]
[ECO "C55"]
[WhiteElo "1475"]
[BlackElo "1804"]
[Annotator "NA RC"]
[PlyCount "109"]
[EventDate "2022.06.22"]
[EventType "swiss"]
[EventCountry "CRO"]
[SourceTitle "playchess.com"]
[Source "ChessBase"]
[SourceQuality "1"]
[TimeControl "5400+30"]

1. e4 {[%emt 0:00:03]} e5 {[%emt 0:00:04]} 2. Nf3 {[%emt 0:00:04]} Nc6 {[%emt 0:00:03]} 3. Bc4 {[%emt 0:00:07]} Nf6 {[%emt 0:00:27]} 4. d3 {[%emt 0:00:55]} Be7 {[%emt 0:00:04]} 5. O-O {[%emt 0:00:09]} d6 {[%emt 0:00:16]} 6. c3 {[%emt 0:00:40]} O-O {[%emt 0:00:17]} 7. Nbd2 {[%emt 0:00:28] 7.Re1 is setting a new trend.} Ne8 {[%emt 0:03:46]} 8. d4 {[%emt 0:04:18] [#]} Kh8 $146 {[%emt 0:05:18]} ({Predecessor:} 8... Bg4 9. h3 Bh5 10. Qc2 Bg6 11. d5 Nb8 12. Bd3 Qc8 13. c4 Na6 14. Qc3 Nc5 15. Bc2 {½-½ (69) Arnetta,M (2060)-Bartolini,M (1597) Bratto 2001}) 9. dxe5 {[%emt 0:03:55]} (9. Re1 $14) 9... dxe5 {[%emt 0:02:50]} 10. Bd5 {[%emt 0:02:02]} Bd6 {[%emt 0:03:04]} 11. Nc4 {[%emt 0:02:30]} Bg4 {[%emt 0:04:26]} 12. Bxc6 {[%emt 0:01:21]} bxc6 {[%emt 0:03:32]} 13. Ncxe5 {[%emt 0:00:42]} Nf6 {[%emt 0:18:17]} 14. Nxg4 {[%emt 0:04:27]} Nxg4 {[%emt 0:00:02]} 15. h3 {[%emt 0:00:12]} f5 {[%emt 0:00:41]} 16. exf5 {[%emt 0:04:36]} Nf6 {[%emt 0:00:09]} 17. Nd4 {[%emt 0:01:41]} Qd7 {[%emt 0:01:10]} 18. Qa4 {[%emt 0:00:58]} c5 {[%emt 0:05:03]} 19. Qxd7 {[%emt 0:00:15]} Nxd7 {[%emt 0:00:02]} 20. Nb5 {[%emt 0:00:37]} Rxf5 {[%emt 0:00:12]} 21. Rd1 {[%emt 0:00:59]} Ne5 {[%emt 0:10:27]} 22. Nxd6 {[%emt 0:04:11]} cxd6 {[%emt 0:00:13]} 23. Rxd6 {[%emt 0:00:50]} Nc4 {[%emt 0:00:07]} 24. Re6 {[%emt 0:00:22]} Rd8 {[%emt 0:02:41]} 25. Be3 {[%emt 0:02:28]} Nxb2 {[%emt 0:00:11]} 26. Bxc5 $2 {[%emt 0:00:32]} Rxc5 {[%emt 0:00:09]} 27. Rb1 {[%emt 0:00:55]} Nd1 {[%emt 0:06:23]} 28. Rd6 {[%emt 0:00:38]} Re8 {[%emt 0:02:07]} 29. Rbxd1 {[%emt 0:00:41]} ({Much less strong is} 29. Rdxd1 $6 Rxc3 30. Rd7 a5 $16) 29... Rxc3 {[%emt 0:00:07]} 30. Rd8 {[%emt 0:00:24]} Rc8 {[%emt 0:00:14]} 31. Rxe8+ {[%emt 0:00:19]} Rxe8 {[%emt 0:00:01]} 32. Rd7 {[%emt 0:00:09]} Ra8 {[%emt 0:00:25]} 33. Kf1 {[%emt 0:00:08]} h6 {[%emt 0:00:18]} 34. Ke2 {[%emt 0:00:09]} Kh7 {[%emt 0:01:10]} 35. Kd3 {[%emt 0:00:13]} Kg6 {[%emt 0:00:06]} 36. a4 {[%emt 0:00:08]} Kf6 {[%emt 0:03:55]} 37. a5 {[%emt 0:00:13]} g6 {[%emt 0:01:20]} 38. Kc4 {[%emt 0:00:26]} Rc8+ {[%emt 0:00:16]} 39. Kd3 {[%emt 0:00:34]} Ra8 {[%emt 0:00:21]} 40. g4 {[%emt 0:00:10]} Kg5 {[%emt 0:00:22]} 41. Rh7 {[%emt 0:00:33]} (41. Rg7 $18 {and White stays clearly on top.}) 41... a6 $18 {[%emt 0:02:26]} (41... Rf8 $142 42. Rxa7 Rxf2 43. Kc4 Rf3 $16) 42. Ke3 {[%emt 0:01:49]} Rf8 {[%emt 0:03:39]} 43. Re7 {[%emt 0:01:39]} Rf6 {[%emt 0:00:40] [#]} 44. Rh7 $2 {[%emt 0:00:54]} ({Better is} 44. Rb7 $1 $18 {[%cal Rb7b6]}) 44... Rf8 {[%emt 0:00:58]} 45. f3 $2 {[%emt 0:03:58]} (45. Rc7 $18) 45... Rf6 {[%emt 0:15:02]} (45... Re8+ $16 46. Kf2 Re5) 46. Rb7 {[%emt 0:02:56]} Re6+ {[%emt 0:00:26] [#]} 47. Kf2 $1 {[%emt 0:01:54]} Re5 {[%emt 0:00:23]} 48. Kg3 {[%emt 0:00:11]} Rxa5 {[%emt 0:01:10]} 49. Rf7 {[%emt 0:00:16]} h5 {[%emt 0:00:16]} 50. h4+ {[%emt 0:00:04]} Kh6 {[%emt 0:00:04]} 51. g5+ {[%emt 0:00:05]} Rxg5+ {[%emt 0:00:03]} 52. hxg5+ {[%emt 0:00:04]} Kxg5 {[%emt 0:00:05]} 53. f4+ {[%emt 0:00:10]} Kh6 {[%emt 0:00:04]} 54. Kh4 {[%emt 0:00:08]} a5 {[%emt 0:00:31]} 55. Ra7 {[%emt 0:00:05]} 1-0

[Event "Croatian-ch Youth U15 2022"]
[Site "Trogir"]
[Date "2022.06.27"]
[Round "9.11"]
[White "Savic, Anja"]
[Black "Zovko, Josipa"]
[Result "1/2-1/2"]
[ECO "E11"]
[WhiteElo "1308"]
[BlackElo "1419"]
[Annotator "NA RC"]
[PlyCount "45"]
[EventDate "2022.06.22"]
[EventType "swiss"]
[EventCountry "CRO"]
[SourceTitle "playchess.com"]
[Source "ChessBase"]
[SourceQuality "1"]
[TimeControl "5400+30"]

1. d4 {[%emt 0:00:17]} Nf6 {[%emt 0:00:17]} 2. c4 {[%emt 0:00:15]} e6 {[%emt 0:00:12]} 3. Nf3 {[%emt 0:00:35]} Bb4+ {[%emt 0:00:43]} 4. Bd2 {[%emt 0:00:32]} Qe7 {[%emt 0:00:35]} 5. Nc3 {[%emt 0:01:22]} O-O {[%emt 0:04:25]} 6. e3 {[%emt 0:00:46]} b6 {[%emt 0:03:00]} 7. Bd3 {[%emt 0:02:28]} Bb7 {[%emt 0:04:31]} 8. O-O {[%emt 0:03:36]} d5 {[%emt 0:06:38]} 9. cxd5 {[%emt 0:03:45]} exd5 {[%emt 0:00:07]} 10. Qc2 {[%emt 0:04:54]} c5 {[%emt 0:21:00]} 11. b3 {[%emt 0:09:26]} Nbd7 {[%emt 0:07:29]} 12. Nb5 {[%emt 0:22:49]} cxd4 {[%emt 0:15:52]} 13. exd4 {[%emt 0:07:51]} Rac8 {[%emt 0:08:03]} 14. Bxb4 {[%emt 0:00:28]} Qxb4 {[%emt 0:01:05]} 15. Qd2 {[%emt 0:02:45]} Qxd2 {[%emt 0:03:11]} 16. Nxd2 {[%emt 0:00:07]} a6 {[%emt 0:04:36]} 17. Nd6 {[%emt 0:00:25]} Rc3 {[%emt 0:00:16]} 18. Bf5 {[%emt 0:02:16]} Ba8 {[%emt 0:03:33]} 19. Rac1 {[%emt 0:00:55]} Rc6 {[%emt 0:00:54]} 20. Rxc6 {[%emt 0:02:09]} Bxc6 {[%emt 0:00:08]} 21. a4 {[%emt 0:05:05]} Rd8 {[%emt 0:04:43]} 22. Rc1 {[%emt 0:02:48]} Nb8 {[%emt 0:00:35]} 23. Nc8 {[%emt 0:03:23]} 1/2-1/2